Cogmind - Beta 13 @@@ ROGUE MODE // 2024.03.22 @ 10:50:49 Player: darki Result: Destroyed by as-20441 with Assembled Rifle Performance ------------- Evolutions (0) 0 Regions Visited (2) 400 Robots Destroyed (24) 120 Value Destroyed (394) 394 Prototype IDs (3) 60 Alien Tech Used (0) 0 Bonus (0) 0 TOTAL SCORE: 974 Bonus ------- None Cogmind --------- Core Integrity 0/250 Matter 211/300 Energy 263/265 System Corruption 0% Temperature Cool (0) Movement Walking (400) Ox4 Location -10/Mines Parts ------- > --- POWER (1) -------- Improved Ion Engine > --- PROPULSION (2) --- Aluminum Leg Aluminum Leg > --- UTILITY (2) ------ Huge Storage Unit Light Armor Plating > --- WEAPON (2) ------- Improved Assault Rifle Improved Assault Rifle > --- INVENTORY (25) --- Improved Ion Engine Aluminum Leg Aluminum Leg Small Storage Unit Medium Matter Pod (100) High-capacity Matter Pod (200) Light Armor Plating EM Pulse Gun EM Pulse Gun Medium Laser Small Laser Small Laser Small Laser Small Laser Small Laser Beam Cannon Beam Cannon Improved Assault Rifle Light Cannon Grenade Launcher Mining Laser Peak State ------------ > --- POWER ------------ Improved Ion Engine > --- PROPULSION ------- Light Treads Light Treads > --- UTILITY ---------- Huge Storage Unit Light Armor Plating > --- WEAPON ----------- Improved Assault Rifle Improved Assault Rifle > --- INVENTORY -------- Ion Engine Light Ion Engine Aluminum Leg Aluminum Leg Aluminum Leg Aluminum Leg Small Storage Unit Medium Matter Pod High-capacity Matter Pod Light Armor Plating Light Armor Plating EM Pulse Gun EM Pulse Gun Medium Laser Small Laser Small Laser Small Laser Small Laser Small Laser Beam Cannon Beam Cannon Improved Assault Rifle Light Cannon Grenade Launcher Mining Laser [Rating: 14] Favorites ----------- Power Ion Engine Engine Ion Engine Propulsion Light Treads Treads Light Treads Leg Aluminum Leg Utility Light Armor Plating Storage Huge Storage Unit Protection Light Armor Plating Weapon Medium Laser Energy Gun Medium Laser Energy Cannon Beam Cannon Ballistic Gun Improved Assault Rifle Launcher Grenade Launcher Build | -11 -10 -10 ------- Run | Yrd Mat Min Slots Evolved . | . . . Power . | . . . Propulsion . | . . . Utility . | . . . Weapon . | . . . Parts Attached 17 | . 13 4 Power 2 | . 1 1 Engine 2 | . 1 1 Core . | . . . Reactor . | . . . Propulsion 4 | . 2 2 Treads 2 | . 2 . Leg 2 | . . 2 Wheel . | . . . Hover . | . . . Flight . | . . . Utility 3 | . 2 1 Device . | . . . Storage 1 | . 1 . Processor . | . . . Hackware . | . . . Protection 2 | . 1 1 Artifact . | . . . Weapon 8 | . 8 . Energy Gun 2 | . 2 . Energy Cannon 1 | . 1 . Ballistic Gun 3 | . 3 . Ballistic Cannon . | . . . Launcher 2 | . 2 . Special Weapon . | . . . Impact Weapon . | . . . Slashing Weapon . | . . . Piercing Weapon . | . . . Special Melee Weapon . | . . . Unidentified Prototypes 1 | . 1 . Parts Lost 4 | . . 4 Power 1 | . . 1 Propulsion 2 | . . 2 Utility 1 | . . 1 Weapon . | . . . Highest Loss Streak 4 | . . 4 To Critical Strikes . | . . . Average Slot Usage (%) 99 | . 99 99 Engine 14 | . 14 14 Treads 25 | . 26 21 Leg 2 | . 1 5 Storage 14 | . 14 14 Protection 13 | . 13 14 Energy Gun 12 | . 13 . Energy Cannon 7 | . 8 . Ballistic Gun 5 | . 3 28 Launcher 2 | . 2 . Naked Turns . | . . . Heaviest Build 96 | 14 96 96 Greatest Support 40 | 20 40 40 Greatest Overweight (x) 4 | . 4 4 Average Overweight (x) 1 | . 1 2 Largest Inventory Capacity 25 | . 25 25 Average Capacity 24 | . 24 25 Most Carried 25 | . 25 25 Average Carried 18 | . 18 23 Final Capacity 25 | 8 25 25 Final Carried 25 | 6 25 21 Class Distribution -------------------- 100% | Mutant Dominant Class ---------------- Mutant | -10/Materials Mutant | -10/Mines Resources | -11 -10 -10 ----------- Run | Yrd Mat Min Matter Collected 729 | 200 475 54 Remotely . | . . . Salvage Created 506 | . 414 92 Parts 47 | . 39 8 Haulers Intercepted 1 | . 1 . Recyclers Shooed . | . . . Parts Field Recycled . | . . . Retrieved Matter . | . . . Parts Self-Destructed . | . . . Prevented . | . . . Kills | -11 -10 -10 ------- Run | Yrd Mat Min Combat Hostiles Destroyed 20 | . 13 7 Guns 11 | . 4 7 Cannons 5 | . 5 . AOE 4 | . 4 . Classes Destroyed 7 | . 5 2 Builder 1 | . 1 . Hauler 1 | . 1 . Watcher 3 | . 3 . Swarmer 14 | . 9 5 Grunt 4 | . 4 . Demolisher 1 | . . 1 Assembled 1 | . . 1 Best Kill Streak 3 | . 3 3 Combat Bots Only 3 | . 3 3 Max Kills in Single Turn 2 | . 2 2 Gunslinging 1 | . . 1 Exploded 2 | . 2 . Melee . | . . . Uniques/NPCs Destroyed . | . . . Combat | -11 -10 -10 -------- Run | Yrd Mat Min Hostile Shots Fired 125 | . 34 91 Missed 36 | . 11 25 Damage Taken 1070 | . 263 807 Core 254 | . 25 229 Absorbed by Shields . | . . . Core Remaining (%) 100 | 100 . . Volleys Fired 56 | . 36 20 Largest 2 | . 2 2 Hottest 110 | . 110 46 Shots Fired 112 | . 72 40 Gun 82 | . 42 40 Cannon 28 | . 28 . Launcher 2 | . 2 . Special . | . . . Kinetic 49 | . 9 40 Thermal 61 | . 61 . Explosive 2 | . 2 . Electromagnetic . | . . . Robot Hit Streak 8 | . 8 6 Robot Miss Streak 3 | . 3 2 Penetration Max . | . . . Secondary Targets 3 | . . 3 Max Gunslinging Chain 1 | . . 1 Shots Hit Robots 65 | . 41 24 Core Hits 30 | . 21 9 Critical Kills . | . . . Critical Parts Destroyed . | . . . Critical Strikes 2 | . 2 . Burn 2 | . 2 . Melee Attacks . | . . . Impact . | . . . Slashing . | . . . Piercing . | . . . Sneak Attacks . | . . . Combat Hostiles . | . . . Follow-up Attacks . | . . . Damage Inflicted 1171 | . 776 395 Guns 675 | . 280 395 Cannons 312 | . 312 . Explosions 184 | . 184 . Melee . | . . . Ramming . | . . . Kinetic 467 | . 72 395 Thermal 520 | . 520 . Explosive 184 | . 184 . Electromagnetic . | . . . Impact . | . . . Slashing . | . . . Piercing . | . . . Highest Corruption . | . . . Average Corruption . | . . . Corruption Purged . | . . . Corruption Blocked . | . . . Overload Shots . | . . . Overflow Damage 5 | . 5 . Projectiles 5 | . 5 . Explosions . | . . . Melee . | . . . Knockbacks . | . . . Impact . | . . . Kinetic . | . . . Secondary . | . . . Self-Inflicted Damage 34 | . 34 . Shots 1 | . 1 . Rammed . | . . . Targets Rammed . | . . . Kicked . | . . . Crushed . | . . . Highest Temperature 285 | . 285 21 Average Temperature 77 | . 79 12 Received Heat Transfer 146 | . 6 140 Siege Activations . | . . . Robots Corrupted . | . . . Combat Hostiles . | . . . Parts Fried . | . . . Impact Corruptions . | . . . Robots Melted . | . . . Combat Hostiles . | . . . Parts Melted 2 | . 2 . Heat Transferred 1431 | . 1431 . Parts Sabotaged . | . . . Parts Stolen . | . . . Parts Stripped . | . . . Power Chain Reactions . | . . . Alert | -11 -10 -10 ------- Run | Yrd Mat Min Peak Influence 171 | . 171 117 Initial 12 | . . 12 Average 43 | . 41 76 Maximum Alert Level . | . . . Low Security (%) 100 | . 100 100 Level 1 . | . . . Level 2 . | . . . Level 3 . | . . . Level 4 . | . . . Level 5 . | . . . High Security . | . . . Max Security . | . . . Squads Dispatched 1 | . 1 . Investigation 1 | . 1 . Extermination . | . . . Reinforcement . | . . . Assault . | . . . Garrison . | . . . Intercept . | . . . Searches Triggered . | . . . Construction Impeded . | . . . Haulers Reinforced . | . . . Active Scanning Responses . | . . . Cargo Convoy Interrupts . | . . . Stealth | -11 -10 -10 --------- Run | Yrd Mat Min Distress Signals 1 | . 1 . Communications Jammed . | . . . Distress Signals . | . . . Times Spotted 47 | . 27 20 Peak Tracking Total 14 | . 4 14 Tactical Retreats 1 | . 1 . Traps | -11 -10 -10 ------- Run | Yrd Mat Min Traps Triggered 2 | . 2 . Indirectly . | . . . Trap Hack Attempts . | . . . Triggered . | . . . Disarmed . | . . . Reprogrammed . | . . . Reused . | . . . Traps Extracted . | . . . Installed . | . . . Triggered . | . . . Machines | -11 -10 -10 ---------- Run | Yrd Mat Min Machines Disabled 1 | . . 1 Max in Single Turn 1 | . . 1 Machines Repaired . | . . . Machines Dismantled . | . . . Machines Sabotaged . | . . . Overloaded Fab Kills . | . . . Hacking | -11 -10 -10 --------- Run | Yrd Mat Min Machines Accessed 4 | . 4 . Terminals 4 | . 4 . Fabricators . | . . . Repair Stations . | . . . Recycling Units . | . . . Scanalyzers . | . . . Garrison Access . | . . . Total Hacks 9 | . 9 . Successful 5 | . 5 . Failed 4 | . 4 . Catastrophic . | . . . Database Lockouts . | . . . Manual 6 | . 6 . Terminals 9 | . 9 . Fabricators . | . . . Repair Stations . | . . . Recycling Units . | . . . Scanalyzers . | . . . Garrison Access . | . . . Terminal Hacks 3 | . 3 . Prototype ID Bank 1 | . 1 . Emergency Access Points 1 | . 1 . Hauler Manifests 1 | . 1 . Fabricator Hacks . | . . . Repair Station Hacks . | . . . Recycling Unit Hacks . | . . . Scanalyzer . | . . . Garrison Access Hacks . | . . . Unauthorized Hacks 2 | . 2 . Terminals 2 | . 2 . Botnet 1 | . 1 . Operators 1 | . 1 . Fabricators . | . . . Repair Stations . | . . . Recycling Units . | . . . Scanalyzers . | . . . Garrison Access . | . . . Data Cores Recovered . | . . . Used . | . . . Hacking Detections 3 | . 3 . Full Trace Events . | . . . Feedback Events . | . . . Feedback Blocked . | . . . Robot Schematics Acquired . | . . . Robots Built . | . . . Authchips . | . . . Time . | . . . Total Robot Build Rating . | . . . Part Schematics Acquired . | . . . Parts Built . | . . . Authchips . | . . . Time . | . . . Total Part Build Rating . | . . . Parts Repaired . | . . . Time . | . . . Parts Recycled . | . . . Recycled Matter . | . . . Retrieved Matter . | . . . Retrieved Components . | . . . Parts Scanalyzed . | . . . Part Schematics Acquired . | . . . Parts Damaged . | . . . Bothacking | -11 -10 -10 ------------ Run | Yrd Mat Min Used RIF Installer . | . . . Robots Hacked . | . . . Non-combat . | . . . Combat . | . . . Robot Hacks Applied . | . . . Relay Couplers Released . | . . . Fabnet Peak Effective % . | . . . Robots Rewired . | . . . Allies Hacked . | . . . Hacks Repelled . | . . . Allies | -11 -10 -10 -------- Run | Yrd Mat Min Total Allies . | . . . Largest Group . | . . . Highest-Rated Group . | . . . Highest-Rated Ally . | . . . Total Orders . | . . . Ally Attacks . | . . . Total Damage . | . . . Kills . | . . . Allies Corrupted . | . . . Allies Melted . | . . . Intel | -11 -10 -10 ------- Run | Yrd Mat Min Robot Analysis Total . | . . . Derelict Logs Recovered 1 | . . 1 Drone Launches . | . . . Drone Recoveries . | . . . Exploration | -11 -10 -10 ------------- Run | Yrd Mat Min Turns Passed 2651 | . 2453 198 Spaces Moved 781 | 1 739 41 Core . | . . . Treads 691 | . 654 37 Legs 90 | 1 85 4 Wheels . | . . . Hover . | . . . Flight . | . . . Fastest Speed 120 | 120 120 320 Average Speed 304 | 120 303 327 Slowest Speed 400 | 120 400 400 Overloaded Moves . | . . . Propulsion Burnouts . | . . . Robots Hopped . | . . . Cave-ins Triggered . | . . . Exploration Rate (%) 38 | 2 95 19 Regions Visited 2 Branch Regions 1 Pre-discovered Areas . | . . . Known Exits Taken . | . . . Unknown Exits Taken 2 | 1 1 . Scrap Searched 1 | . . 1 Spaces Dug . | . . . Terrain Destroyed 13 | . 13 . Melee . | . . . Projectile . | . . . AOE 13 | . 13 . Terrain Rammed . | . . . Walls Destroyed . | . . . Machines Disabled . | . . . Actions | -11 -10 -10 --------- Run | Yrd Mat Min Total 950 | . 883 67 Wait 64 | . 62 2 Move 779 | . 738 41 Hop . | . . . Pick Up 24 | . 24 . Fast Attach 5 | . 5 . Attach 4 | . . 4 Detach . | . . . Swap 8 | . 8 . Drop 10 | . 10 . Fire 56 | . 36 20 Melee . | . . . Ram . | . . . Kick . | . . . Crush . | . . . Escape Stasis . | . . . Rewire . | . . . Trap . | . . . Miscellaneous . | . . . Route ------- -11/Scrapyard -10/Materials (discovered 5 exits: [*Mat x3] / [*Min x2]) -10/Mines History --------- Turn | Location | Event 1 | -11/Scrapyard | Discovered new exit (range 0) 1 | -11/Scrapyard | Entered Materials 303 | -10/Materials | Build established: Mutant 514 | -10/Materials | Discovered new exit (range 16) 1139 | -10/Materials | Discovered new exit (range 5) 1555 | -10/Materials | Discovered new exit (range 7) 1948 | -10/Materials | Discovered new exit (range 9) 2154 | -10/Materials | Discovered new exit (range 15) 2454 | -10/Materials | Entered Mines 2482 | -10/Mines | Met a Derelict bent on vengeance 2532 | -10/Mines | Learned Materials stockpile data 2565 | -10/Mines | Assembled infested the area 2570 | -10/Mines | Assisted by a Guerilla fighting off Assembled 2606 | -10/Mines | Core integrity fell below 50% 2611 | -10/Mines | Core integrity fell below 20% 2645 | -10/Mines | Lost 4 parts (1p2n1u) 2652 | -10/Mines | Destroyed by as-20441 with Assembled Rifle Last Messages --------------- 02618_ The unstable cave ceiling collapses. 02619_ S-10 Pest destroyed. 02619_ Switching to secondary target: S-10 Pest. 02619_ S-10 Pest destroyed. 02619_ R-06 Scavenger collects Flight Unit. 02620_ U-05 Engineer lays Concrete. 02621_ The unstable cave ceiling collapses. 02621_ U-05 Engineer builds a Wall. 02622_ U-05 Engineer lays Concrete. 02622_ R-06 Scavenger collects Lgt. Assault Rifle. 02626_ U-05 Engineer builds a Wall. 02629_ The unstable cave ceiling collapses. 02630_ U-05 Engineer lays Concrete. 02634_ U-05 Engineer destroyed. 02639_ The unstable cave ceiling collapses. 02640_ Destroyed Asb. F-torch. 02642_ The unstable cave ceiling collapses. 02643_ as-80818 destroyed. 02646_ The unstable cave ceiling collapses. Map ----- +----------------------------------------------------+ | ?????????????????????????????????????????????????? | | ?????????????????????????????????????????????????? | | ?????????????????????????????????????????????????? | | ?????????????????????????????????????????????????? | | ?????????????????????????????????????????????????? | | ?????????????????????????????????????????????????? | | ?????????????????????????????????????????????????? | | ?????????????????????????????????????????????????? | | ?????????????????????????????????????????????????? | | ?????????????????????????????????????????????????? | | ?????????????????????????????????????????????????? | | ???????????????????????????? ? ??????????????????? | | ???????????????????????????? #???????????????? | | ?????????????????????#????## ???????????????? | | ????????????????????? ##?? ??????????????? | | ????????????????????? ?? ????????????? | | ?????????????????????# ?? ##???????????? | | ????????#####????##### #?? #???????????? | | ???????## ???? ## #?# #???????????? | | ?????### ??## ## ### ###?????????? | | ???? # # ## % ?????????? | | ???? = ### ## #%a"""" ??????????? | | ???? % r %%*%"""" #????????????? | | ?????????# % % = " "" #??????????????? | | ??????????# # #???????????????? | | ????????????## @ ##??????????????? | | ?????????????#### ### # # #??????????????? | | ??????????????????????# # #??????????????? | | ??????????????????????## ##??????????????? | | ????????????????####### ## ##???????????????? | | ????????????????# # #????????????????? | | ????????????????# """ ### #????????????????? | | ????????????????# """# ###????????????????? | | ????????????????# """## ##?????????????????? | | ????????????????# ! #??????????????????? | | ????????????????# #??????????????????? | | ????????????????# ########??????????????????? | | ????????????????#[ #?????????????????????????? | | ????????????????########?????????????????????????? | | ?????????????????????????????????????????????????? | | ?????????????????????????????????????????????????? | | | | | | | | | | | | | | | | | | | +----------------------------------------------------+ Best States ------------- Heat Dissipation 25 Energy Generation 12 Energy Capacity 265 Matter Stores 300 Matter Capacity 300 Sight Range 16 Terrain Scan Density 10 Armor Coverage 150 Evasion (%) 55 Recoil Reduction 2 Item Schematics ----------------- None Robot Schematics ------------------ None Fabricated ------------ Nothing Alien Tech Used ----------------- None Achievements -------------- None Challenges ------------ None Game ------ Seed SwarmAdvancedScythe Manual? 0 Play Time 00:10:14 Cumulative 173.0 hours Start 2024.03.22 @ 10:42:11 End 2024.03.22 @ 10:50:49 Sessions 1 Manual Loads 0 Difficulty Rogue Special Mode None Game No. 185 Rogue 185 Adventurer 0 Explorer 0 Win Type - Total 1 Types 1/0/0/0/0/0/0/0/0 Lore% 56 Gallery% 73 Achievement% 57 Wizard Run 0 Options --------- Layout 1 ASCII 0 Keyboard 0 Movement Numpad Keybinds 0 Fullscreen 1 Font 24/Smallcaps Map View 50x35 Zoom Use 0% Tactical HUD 1 Map Filters NONE Filters NONE Steam 1 RUN: 4ee8b29c-5307-4b8c-aadd-aa35eec54317